fUSD/lending_fUSD_20260528
["ID","MTS","AMOUNT","RATE_DAILY","PERIOD"]
[423186965,1779910281000,-2314.0,0.00038612,11]
[423186954,1779910281000,-157.89931684,0.0003857,2]
[423186960,1779910281000,-11610.85,0.000386,2]
[423186959,1779910281000,-11610.85,0.000386,2]
[423186985,1779910281000,-500.0,0.00038772,30]
[423186963,1779910281000,-900.0,0.000386,14]
[423186993,1779910281000,-2317.0,0.00038791,11]
[423187021,1779910281000,-300.0,0.00038904,120]
[423187020,1779910281000,-300.0,0.00038904,120]
[423187019,1779910281000,-300.0,0.00038904,120]
[423187025,1779910281000,-300.0,0.00038904,120]
[423187024,1779910281000,-300.0,0.00038904,120]
[423187036,1779910281000,-300.0,0.00038904,120]
[423187028,1779910281000,-300.0,0.00038904,120]
[423187030,1779910281000,-300.0,0.00038904,120]
[423187038,1779910281000,-300.0,0.00038904,120]
[423187031,1779910281000,-300.0,0.00038904,120]
[423187034,1779910281000,-300.0,0.00038904,120]
[423187035,1779910281000,-300.0,0.00038904,120]
[423187032,1779910281000,-300.0,0.00038904,120]
[423187039,1779910281000,-300.0,0.00038904,120]
[423187029,1779910281000,-300.0,0.00038904,120]
[423187037,1779910281000,-300.0,0.00038904,120]
[423187033,1779910281000,-300.0,0.00038904,120]
[423187040,1779910281000,-300.0,0.00038904,120]
[423187042,1779910281000,-1549.0,0.00038904,30]
[423187041,1779910281000,-427.484109,0.00038904,120]
[423187046,1779910281000,-1000.0,0.00038912,2]
[423187050,1779910281000,-152.0,0.00038936,7]
[423187044,1779910281000,-1000.0,0.00038912,2]
[423187045,1779910281000,-1000.0,0.00038912,2]
[423187043,1779910281000,-1000.0,0.00038912,2]
[423187049,1779910281000,-1589.0,0.00038931,11]
[423187048,1779910281000,-161.84,0.0003892,116]
[423187015,1779910281000,-300.0,0.00038904,120]
[423187017,1779910281000,-300.0,0.00038904,120]
[423186986,1779910281000,-500.0,0.00038772,30]
[423187022,1779910281000,-300.0,0.00038904,120]
[423186992,1779910281000,-1589.0,0.00038783,11]
[423187003,1779910281000,-181.95,0.00038866,30]
[423186995,1779910281000,-158639.0,0.000388,30]
[423186996,1779910281000,-317.39,0.000388,120]
[423187000,1779910281000,-163.0,0.00038833,11]
[423186997,1779910281000,-1529.0,0.000388,14]
[423186994,1779910281000,-340.06,0.000388,120]
[423187002,1779910281000,-2317.0,0.00038858,11]
[423186998,1779910281000,-330.0,0.00038828,54]
[423187001,1779910281000,-157.89931684,0.00038844,2]
[423186999,1779910281000,-1595.0,0.0003883,11]
[423187004,1779910281000,-272.9613058,0.0003888,30]
[423187006,1779910281000,-183.79221993,0.000389,120]
[423187023,1779910281000,-300.0,0.00038904,120]
[423187008,1779910281000,-163.33,0.00038904,60]
[423187007,1779910281000,-151.0,0.000389,120]
[423187018,1779910281000,-300.0,0.00038904,120]
[423187026,1779910281000,-300.0,0.00038904,120]
[423187027,1779910281000,-300.0,0.00038904,120]
[423187016,1779910281000,-300.0,0.00038904,120]
[423187011,1779910281000,-300.0,0.00038904,120]
[423187047,1779910281000,-1470.16241665,0.00038912,2]
[423187005,1779910281000,-10000.0,0.000389,30]
[423187014,1779910281000,-300.0,0.00038904,120]
[423187009,1779910281000,-300.0,0.00038904,120]
[423187012,1779910281000,-300.0,0.00038904,120]
[423187013,1779910281000,-300.0,0.00038904,120]
[423187010,1779910281000,-300.0,0.00038904,120]
[423187084,1779910282000,-137975.70983442,0.000391,30]
[423187078,1779910282000,-163.0,0.00039091,11]
[423187080,1779910282000,-2317.0,0.00039098,11]
[423187081,1779910282000,-2317.0,0.00039098,11]
[423187076,1779910282000,-2317.0,0.00039085,11]
[423187082,1779910282000,-1200.0,0.00039099,120]
[423187083,1779910282000,-300.0,0.00039099,120]
[423187086,1779910282000,-3574.294,0.000391,120]
[423187085,1779910282000,-1639.89254243,0.000391,120]
[423187090,1779910282000,-158.22780846,0.00039156,120]
[423187094,1779910282000,-1000.0,0.00039178,2]
[423187087,1779910282000,-3574.294,0.000391,120]
[423187091,1779910282000,-1589.0,0.0003917,11]
[423187089,1779910282000,-157.89931684,0.00039118,2]
[423187095,1779910282000,-1000.0,0.00039178,2]
[423187077,1779910282000,-2317.0,0.00039087,11]
[423187096,1779910282000,-1000.0,0.00039178,2]
[423187093,1779910282000,-1000.0,0.00039178,2]
[423187097,1779910282000,-1000.0,0.00039178,2]
[423187098,1779910282000,-1000.0,0.00039178,2]
[423187102,1779910282000,-1000.0,0.00039178,2]
[423187092,1779910282000,-1000.0,0.00039178,2]
[423187075,1779910282000,-2236.0,0.00039072,11]
[423187066,1779910282000,-2021.09,0.00039,60]
[423187072,1779910282000,-745.65223615,0.00039023,2]
[423187051,1779910282000,-2317.0,0.00038951,11]
[423187052,1779910282000,-237.06,0.00038979,30]
[423187055,1779910282000,-1576.62943726,0.00039,7]
[423187054,1779910282000,-1000.0,0.00038994,120]
[423187056,1779910282000,-3153.25887451,0.00039,7]
[423187053,1779910282000,-10000.0,0.0003898,30]
[423187058,1779910282000,-524.35174544,0.00039,7]
[423187062,1779910282000,-370.63630856,0.00039,10]
[423187061,1779910282000,-1088.09199908,0.00039,120]
[423187057,1779910282000,-152.0,0.00039,120]
[423187073,1779910282000,-929.95823778,0.00039023,2]
[423187059,1779910282000,-300.0,0.00039,2]
[423187064,1779910282000,-1000.0,0.00039,120]
[423187074,1779910282000,-1643.0,0.0003906,11]
[423187063,1779910282000,-5947.24,0.00039,14]
[423187067,1779910282000,-2000.0,0.00039,75]
[423187065,1779910282000,-1000.0,0.00039,30]
[423187068,1779910282000,-1237.18812626,0.00039,7]
[423187099,1779910282000,-1000.0,0.00039178,2]
[423187070,1779910282000,-2317.0,0.00039005,11]
[423187069,1779910282000,-2316.0,0.00039004,11]
[423187071,1779910282000,-1589.0,0.00039017,11]
[423187060,1779910282000,-1399.39827256,0.00039,120]
[423187101,1779910282000,-1000.0,0.00039178,2]
[423187079,1779910282000,-222.392196,0.00039097,14]
[423187104,1779910282000,-1000.0,0.00039178,2]
[423187131,1779910282000,-2623.23,0.00039291,120]
[423187132,1779910282000,-222.392196,0.00039292,14]
[423187133,1779910282000,-657384.82761112,0.00039295,5]
[423187130,1779910282000,-393.0,0.00039287,2]
[423187138,1779910282000,-4957.93188675,0.00039304,14]
[423187134,1779910282000,-657384.82761112,0.00039295,5]
[423187137,1779910282000,-7326.31286019,0.000393,120]
[423187136,1779910282000,-11610.85,0.000393,2]
[423187135,1779910282000,-151.0,0.000393,120]
[423187139,1779910282000,-150.0,0.00039315,30]
[423187140,1779910282000,-1259.0,0.00039325,11]
[423187146,1779910282000,-300.0,0.00039348,30]
[423187141,1779910282000,-163.0,0.00039325,11]
[423187143,1779910282000,-3153.25887451,0.00039333,7]
[423187151,1779910282000,-1502.77,0.00039362,120]
[423187142,1779910282000,-1576.62943726,0.00039333,7]
[423187145,1779910282000,-11768.9319941,0.00039342,2]
[423187149,1779910282000,-339387.9136879,0.00039355,2]
[423187150,1779910282000,-134724.5281581,0.00039355,2]
[423187144,1779910282000,-2623.23671378,0.00039341,120]
[423187148,1779910282000,-222.392196,0.00039352,14]
[423187147,1779910282000,-302.29,0.00039348,30]
[423187100,1779910282000,-1000.0,0.00039178,2]
[423187124,1779910282000,-1589.0,0.00039251,11]
[423187127,1779910282000,-317.79088579,0.00039272,2]
[423187088,1779910282000,-3574.29,0.000391,120]
[423187129,1779910282000,-2317.0,0.00039273,11]
[423187125,1779910282000,-558.20397708,0.0003927,2]
[423187105,1779910282000,-1000.0,0.00039178,2]
[423187106,1779910282000,-1000.0,0.00039178,2]
[423187107,1779910282000,-1000.0,0.00039178,2]
[423187108,1779910282000,-1000.0,0.00039178,2]
[423187103,1779910282000,-1000.0,0.00039178,2]
[423187110,1779910282000,-1549.0,0.00039178,30]
[423187111,1779910282000,-258.63753108,0.00039185,2]
[423187112,1779910282000,-411.0,0.00039188,2]
[423187113,1779910282000,-1576.62943726,0.00039195,7]
[423187116,1779910282000,-210.90732829,0.00039196,120]
[423187109,1779910282000,-924.08,0.00039178,2]
[423187114,1779910282000,-3153.25887451,0.00039195,7]
[423187117,1779910282000,-221.09502106,0.00039196,120]
[423187118,1779910282000,-210.90732828,0.00039196,120]
[423187120,1779910282000,-415.79,0.00039199,30]
[423187119,1779910282000,-300.0,0.00039199,30]
[423187122,1779910282000,-411.0,0.00039225,2]
[423187121,1779910282000,-441.66,0.000392,120]
[423187123,1779910282000,-201.56,0.00039243,120]
[423187126,1779910282000,-3621.01003554,0.00039272,2]
[423187115,1779910282000,-221.09502107,0.00039196,120]
[423187128,1779910282000,-5941.69735554,0.00039272,2]
[423187186,1779910283000,-1000.0,0.00039371,120]
[423187195,1779910283000,-500.0,0.00039371,120]
[423187193,1779910283000,-500.0,0.00039371,120]
[423187194,1779910283000,-500.0,0.00039371,120]
[423187187,1779910283000,-1000.0,0.00039371,120]
[423187182,1779910283000,-1000.0,0.00039371,120]
[423187185,1779910283000,-1000.0,0.00039371,120]
[423187184,1779910283000,-1000.0,0.00039371,120]
[423187183,1779910283000,-1000.0,0.00039371,120]
[423187192,1779910283000,-500.0,0.00039371,120]
[423187188,1779910283000,-500.0,0.00039371,120]
[423187191,1779910283000,-500.0,0.00039371,120]
[423187204,1779910283000,-800.0,0.00039371,120]
[423187190,1779910283000,-500.0,0.00039371,120]
[423187189,1779910283000,-1145.89703556,0.00039371,120]
[423187196,1779910283000,-500.0,0.00039371,120]
[423187199,1779910283000,-500.0,0.00039371,120]
[423187198,1779910283000,-4819.98504121,0.00039371,120]
[423187200,1779910283000,-500.0,0.00039371,120]
[423187202,1779910283000,-500.0,0.00039371,120]
[423187205,1779910283000,-500.0,0.00039371,120]
[423187180,1779910283000,-1000.0,0.00039371,120]
[423187201,1779910283000,-500.0,0.00039371,120]
[423187207,1779910283000,-500.0,0.00039371,120]
[423187208,1779910283000,-800.0,0.00039371,120]
[423187197,1779910283000,-470.08025884,0.00039371,120]
[423187178,1779910283000,-1000.0,0.00039371,120]
[423187172,1779910283000,-1000.0,0.00039371,120]
[423187179,1779910283000,-1000.0,0.00039371,120]
[423187203,1779910283000,-248.09677701,0.00039371,120]
[423187152,1779910283000,-264.2464347,0.00039368,7]
[423187153,1779910283000,-301.0,0.00039369,120]
[423187155,1779910283000,-1176.0,0.00039369,120]
[423187154,1779910283000,-275.0,0.00039369,120]
[423187157,1779910283000,-158.0,0.00039369,120]
[423187159,1779910283000,-1000.0,0.00039371,120]
[423187158,1779910283000,-1000.0,0.00039371,120]
[423187161,1779910283000,-1000.0,0.00039371,120]
[423187162,1779910283000,-1000.0,0.00039371,120]
[423187163,1779910283000,-1000.0,0.00039371,120]
[423187160,1779910283000,-1000.0,0.00039371,120]
[423187164,1779910283000,-1000.0,0.00039371,120]
[423187166,1779910283000,-1000.0,0.00039371,120]
[423187167,1779910283000,-1000.0,0.00039371,120]
[423187174,1779910283000,-1000.0,0.00039371,120]
[423187169,1779910283000,-1000.0,0.00039371,120]
[423187171,1779910283000,-1000.0,0.00039371,120]
[423187165,1779910283000,-1000.0,0.00039371,120]
[423187168,1779910283000,-1000.0,0.00039371,120]
[423187173,1779910283000,-1000.0,0.00039371,120]
[423187170,1779910283000,-1000.0,0.00039371,120]
[423187177,1779910283000,-1000.0,0.00039371,120]
[423187181,1779910283000,-1000.0,0.00039371,120]
[423187176,1779910283000,-1000.0,0.00039371,120]
[423187175,1779910283000,-1000.0,0.00039371,120]
[423187156,1779910283000,-286.0,0.00039369,120]
[423187206,1779910283000,-800.0,0.00039371,120]
[423187210,1779910283000,-800.0,0.00039371,120]
[423187240,1779910283000,-4500.04819645,0.00039372,30]
[423187243,1779910283000,-589.833533,0.00039372,2]
[423187241,1779910283000,-160.507649,0.00039372,2]
[423187244,1779910283000,-183.0,0.00039372,120]
[423187242,1779910283000,-320.0,0.00039372,2]
[423187247,1779910283000,-320.0,0.00039372,2]
[423187248,1779910283000,-946.385,0.00039372,120]
[423187249,1779910283000,-369.51,0.00039372,30]
[423187251,1779910283000,-946.385,0.00039372,120]
[423187250,1779910283000,-545.86,0.00039372,30]
[423187252,1779910283000,-37145.50558614,0.00039372,61]
[423187256,1779910283000,-27487.88806557,0.00039372,30]
[423187238,1779910283000,-48000.0,0.00039372,120]
[423187253,1779910283000,-26348211.57439272,0.00039372,30]
[423187255,1779910283000,-8182.53912241,0.00039372,30]
[423187257,1779910283000,-500970.5368019,0.00039372,30]
[423187254,1779910283000,-3000.7373487,0.00039372,2]
[423187260,1779910283000,-67949.09126322,0.00039372,2]
[423187261,1779910283000,-19594.76372567,0.00039372,30]
[423187266,1779910283000,-25823.14592223,0.00039372,30]
[423187263,1779910283000,-10258.9384492,0.00039372,30]
[423187262,1779910283000,-3425304.33626814,0.00039372,30]
[423187265,1779910283000,-968159.0895625,0.00039372,60]
[423187259,1779910283000,-53621.18434145,0.00039372,30]
[423187264,1779910283000,-57497.71966941,0.00039372,30]
[423187220,1779910283000,-800.0,0.00039371,120]
[423187258,1779910283000,-20575.69926189,0.00039372,30]
[423187239,1779910283000,-369.984702,0.00039372,2]
[423187224,1779910283000,-800.0,0.00039371,120]
[423187234,1779910283000,-837.23092791,0.00039372,90]
[423187209,1779910283000,-500.0,0.00039371,120]
[423187213,1779910283000,-500.0,0.00039371,120]
[423187211,1779910283000,-500.0,0.00039371,120]
[423187212,1779910283000,-800.0,0.00039371,120]
[423187215,1779910283000,-500.0,0.00039371,120]
[423187216,1779910283000,-421.90145406,0.00039371,120]
[423187218,1779910283000,-800.0,0.00039371,120]
[423187214,1779910283000,-800.0,0.00039371,120]
[423187217,1779910283000,-800.0,0.00039371,120]
[423187221,1779910283000,-800.0,0.00039371,120]
[423187223,1779910283000,-800.0,0.00039371,120]
[423187237,1779910283000,-67375.36543754,0.00039372,120]
[423187226,1779910283000,-800.0,0.00039371,120]
[423187219,1779910283000,-800.0,0.00039371,120]
[423187233,1779910283000,-1000.0,0.00039372,90]
[423187236,1779910283000,-160.507649,0.00039372,2]
[423187225,1779910283000,-800.0,0.00039371,120]
[423187245,1779910283000,-2872.0,0.00039372,120]
[423187235,1779910283000,-226.0,0.00039372,2]
[423187231,1779910283000,-16312292.26421509,0.00039372,30]
[423187228,1779910283000,-800.0,0.00039371,120]
[423187246,1779910283000,-500.0,0.00039372,120]
[423187227,1779910283000,-800.0,0.00039371,120]
[423187229,1779910283000,-800.0,0.00039371,120]
[423187230,1779910283000,-808.89277437,0.00039371,120]
[423187222,1779910283000,-800.0,0.00039371,120]
[423187232,1779910283000,-1000.0,0.00039372,90]
[423187278,1779910284000,-1000.0,0.00039372,2]
[423187268,1779910284000,-590587.22376464,0.00039372,30]
[423187267,1779910284000,-502113.79441678,0.00039372,30]
[423187269,1779910284000,-6004354.47654758,0.00039372,30]
[423187275,1779910284000,-1000.0,0.00039372,2]
[423187274,1779910284000,-1000.0,0.00039372,2]
[423187272,1779910284000,-1000.0,0.00039372,2]
[423187270,1779910284000,-5165.17462587,0.00039372,30]
[423187271,1779910284000,-239.35,0.00039372,30]
[423187273,1779910284000,-1000.0,0.00039372,2]
[423187277,1779910284000,-1000.0,0.00039372,2]
[423187283,1779910284000,-409.95,0.00039372,30]
[423187279,1779910284000,-1000.0,0.00039372,2]
[423187281,1779910284000,-1940.3248333,0.00039372,2]
[423187282,1779910284000,-280.49,0.00039372,30]
[423187285,1779910284000,-322.81,0.00039372,30]
[423187280,1779910284000,-1000.0,0.00039372,2]
[423187286,1779910284000,-4099270.42802787,0.00039372,30]
[423187284,1779910284000,-20013.0,0.00039372,120]
[423187287,1779910284000,-522.52533801,0.00039372,30]
[423187289,1779910284000,-316.62980946,0.00039372,30]
[423187288,1779910284000,-124239.26335863,0.00039372,30]
[423187276,1779910284000,-1000.0,0.00039372,2]
[423187290,1779910285000,150.0,0.00012869,2]
[423187292,1779910304000,406.4562,0.00010599,2]
[423187293,1779910353000,2000.0,0.0002808,120]
[423187295,1779910674000,152.0,0.00027935,120]
[423187296,1779910950000,-150.0,0.00011169,2]
[423187297,1779910960000,-150.0,0.00010275,2]
[423187298,1779911121000,-151.0,0.000101,2]
[423187299,1779911134000,-32.15,0.00010275,2]
[423187300,1779911134000,-246.58975955,0.0001111,2]
[423187301,1779911248000,-3.41024045,0.0001111,2]
[423187304,1779911248000,-150.0,0.0001123,2]
[423187302,1779911248000,-399.37508185,0.00011139,2]
[423187303,1779911248000,-7.94,0.00011169,2]
[423187305,1779911248000,-150.0,0.00011341,2]
[423187306,1779911248000,-327.93071218,0.00011426,2]
[423187309,1779911248000,-157.94,0.00011913,2]
[423187307,1779911248000,-150.0,0.00011453,2]
[423187310,1779911248000,-250.0,0.00012221,2]
[423187313,1779911248000,-948.03012164,0.00012377,2]
[423187312,1779911248000,-577.020073,0.00012375,2]
[423187311,1779911248000,-562.69,0.00012351,2]
[423187308,1779911248000,-237.0,0.00011564,2]
[423187314,1779911330000,-214.8517235,0.00012338,2]
[423187315,1779911383000,-168.93400324,0.00012338,2]
[423187338,1779911436000,-3495.96987836,0.00012377,2]
[423187353,1779911437000,-4802.88,0.00012779,2]
[423187357,1779911437000,-9999.99,0.00012779,2]
[423187347,1779911437000,-157.94,0.00012658,2]
[423187341,1779911437000,-658.45020985,0.00012438,2]
[423187343,1779911437000,-241.54979015,0.00012438,2]
[423187339,1779911437000,-200.0,0.00012438,2]
[423187342,1779911437000,-300.0,0.00012438,2]
[423187344,1779911437000,-958.45020985,0.00012438,2]
[423187346,1779911437000,-11753.53,0.00012533,2]
[423187354,1779911437000,-150.99,0.00012779,2]
[423187340,1779911437000,-541.54979015,0.00012438,2]
[423187345,1779911437000,-14859.0,0.0001244,2]
[423187348,1779911437000,-214.85172348,0.00012703,2]
[423187365,1779911437000,-152.85376142,0.00013067,2]
[423187356,1779911437000,-24999.99,0.00012779,2]
[423187364,1779911437000,-61.99796206,0.00013067,2]
[423187352,1779911437000,-9999.99,0.00012779,2]
[423187361,1779911437000,-7285.91,0.00012869,2]
[423187358,1779911437000,-1485.14,0.00012781,2]
[423187363,1779911437000,-169.4219,0.00012997,2]
[423187366,1779911437000,-4994.51958859,0.00013067,2]
[423187360,1779911437000,-195.3636,0.00012866,2]
[423187362,1779911437000,-330.0,0.00012877,3]
[423187351,1779911437000,-9999.99,0.00012779,2]
[423187349,1779911437000,-150.0,0.00012764,2]
[423187350,1779911437000,-201.44549433,0.00012779,2]
[423187359,1779911437000,-999.99,0.00012781,2]
[423187355,1779911437000,-299.99,0.00012779,2]
[423187370,1779911438000,-6078.0,0.00013067,2]
[423187369,1779911438000,-2438.15312271,0.00013067,2]
[423187368,1779911438000,-1131.52677623,0.00013067,2]
[423187381,1779911440000,-1218.09917664,0.00013232,2]
[423187379,1779911440000,-277.20426146,0.00013232,2]
[423187378,1779911440000,-435.70402546,0.00013232,2]
[423187375,1779911440000,-6236.9012,0.00013067,2]
[423187376,1779911440000,-591.97121341,0.00013157,2]
[423187382,1779911440000,-6472.27557025,0.00013355,2]
[423187373,1779911440000,-7607.15707027,0.00013067,2]
[423187374,1779911440000,-2544.01558029,0.00013067,2]
[423187384,1779911440000,-157.94,0.00013402,2]
[423187377,1779911440000,-1118.48411451,0.00013232,2]
[423187396,1779911440000,-500.0,0.0001446,2]
[423187386,1779911440000,-160.0,0.00013496,2]
[423187394,1779911440000,-500.0,0.0001446,2]
[423187395,1779911440000,-500.0,0.0001446,2]
[423187393,1779911440000,-157.94,0.00014147,2]
[423187388,1779911440000,-215.46156935,0.00013517,2]
[423187392,1779911440000,-250.0,0.00014,2]
[423187391,1779911440000,-1680.0,0.00013682,2]
[423187389,1779911440000,-250.0,0.00013615,2]
[423187390,1779911440000,-420.0,0.00013648,2]
[423187387,1779911440000,-208.97895572,0.00013496,2]
[423187397,1779911441000,-500.0,0.0001446,2]
[423187398,1779911441000,-799.188,0.0001446,2]
[423187399,1779911441000,-1186.1749,0.000148,2]
[423187401,1779911441000,-587.0,0.00014976,2]
[423187402,1779911441000,-1428.65269709,0.00015018,2]
[423187400,1779911441000,-157.94,0.00014891,2]
[423187406,1779911441000,-393.99,0.00015144,2]
[423187405,1779911441000,-172.73,0.00015136,2]
[423187407,1779911441000,-157.94,0.00015636,2]
[423187408,1779911441000,-24793.37213802,0.00015976,2]
[423187411,1779911441000,-1207.89201582,0.00016114,2]
[423187409,1779911441000,-300.0,0.00016,2]
[423187404,1779911441000,-344.0,0.0001505,2]
[423187418,1779911443000,-259.40798418,0.00016114,2]
[423187421,1779911443000,-218.15774763,0.00016433,2]
[423187420,1779911443000,-157.94,0.00016381,2]
[423187419,1779911443000,-164.04,0.00016139,2]
[423187422,1779911444000,-204.36401772,0.00016433,2]
[423187449,1779911446000,-2500.0,0.00018514,2]
[423187451,1779911446000,-20793.38537993,0.00018884,2]
[423187450,1779911446000,-157.94,0.00018614,2]
[423187447,1779911446000,-350.0,0.00018,2]
[423187446,1779911446000,-157.94,0.0001787,2]
[423187445,1779911446000,-157.94,0.00017125,2]
[423187444,1779911446000,-1727.10476536,0.00016891,2]
[423187443,1779911446000,-272.89523464,0.00016891,2]
[423187442,1779911446000,-357.51084405,0.00016433,2]
[423187441,1779911446000,-42.9673906,0.00016433,2]
[423187448,1779911446000,-334.0,0.00018032,2]
[423187571,1779911489000,-500.0,0.00012438,2]
[423187572,1779911543000,-500.0,0.00012438,2]
[423187574,1779911596000,-214.8517235,0.00012337,2]
[423187575,1779911649000,-500.0,0.00012437,2]
[423187576,1779911702000,-1200.0,0.00012435,2]
[423187578,1779911756000,-300.0,0.00012435,2]
[423187580,1779911809000,-151.35,0.00012199,2]
[423187588,1779912002000,3905.28,0.0001,2]
[423187590,1779912040000,760.19220393,0.00026634,120]
[423187589,1779912040000,760.19220393,0.00026562,120]
[423187592,1779912269000,-151.0,0.000122,2]
[423187593,1779912322000,-151.0,0.000123,2]
[423187594,1779912375000,-1200.0,0.0001243,2]
[423187595,1779912428000,-300.0,0.0001243,2]
[423187596,1779912429000,-192.06721979,0.0001243,2]
[423187597,1779912482000,-151.0,0.000123,2]
[423187598,1779912535000,-500.0,0.00012429,2]
[423187599,1779912548000,156.62,7.189e-05,2]
[423187602,1779912548000,156.62,9.346e-05,2]
[423187601,1779912548000,156.62,8.627e-05,2]
[423187600,1779912548000,156.62,7.908e-05,2]
[423187604,1779912549000,112.8407138,0.00010065,2]
[423187603,1779912549000,43.7792862,0.00010065,2]
[423187607,1779912556000,-68.24,0.00011503,2]
[423187606,1779912556000,-88.38,0.00011503,2]
[423187605,1779912556000,-156.62,0.00010784,2]
[423187611,1779912560000,-500.0,0.00012429,2]
[423187609,1779912560000,-274.00350829,0.00012429,2]
[423187610,1779912560000,-500.0,0.00012429,2]
[423187612,1779912560000,-500.0,0.00012429,2]
[423187608,1779912560000,-156.62,0.00012222,2]
[423187614,1779912560000,-500.0,0.00012429,2]
[423187615,1779912560000,-500.0,0.00012429,2]
[423187617,1779912560000,-55.0319473,0.00012429,2]
[423187616,1779912560000,-500.0,0.00012429,2]
[423187613,1779912560000,-500.0,0.00012429,2]
[423187618,1779912588000,-444.9680527,0.00012429,2]
[423188125,1779912642000,-500.0,0.00012711,2]
[423188123,1779912642000,-500.0,0.00012711,2]
[423188121,1779912642000,-500.0,0.00012711,2]
[423188133,1779912642000,-500.0,0.00012711,2]
[423188129,1779912642000,-500.0,0.00012711,2]
[423188135,1779912642000,-500.0,0.00012711,2]
[423188137,1779912642000,-500.0,0.00012711,2]
[423188127,1779912642000,-500.0,0.00012711,2]
[423188141,1779912642000,-500.0,0.00012711,2]
[423188145,1779912642000,-500.0,0.00012711,2]
[423188139,1779912642000,-500.0,0.00012711,2]
[423188119,1779912642000,-500.0,0.00012711,2]
[423188104,1779912642000,-500.0,0.00012711,2]
[423188105,1779912642000,-500.0,0.00012711,2]
[423188111,1779912642000,-500.0,0.00012711,2]
[423188107,1779912642000,-500.0,0.00012711,2]
[423188117,1779912642000,-500.0,0.00012711,2]
[423188118,1779912642000,-500.0,0.00012711,2]
[423188116,1779912642000,-500.0,0.00012711,2]
[423188115,1779912642000,-500.0,0.00012711,2]
[423188113,1779912642000,-500.0,0.00012711,2]
[423188102,1779912642000,-1454.9638,0.00012642,2]
[423188099,1779912642000,-168.93400324,0.0001243,2]
[423188067,1779912642000,-1200.0,0.00012428,2]
[423188143,1779912642000,-500.0,0.00012711,2]
[423188109,1779912642000,-500.0,0.00012711,2]
[423188155,1779912642000,-731.90849999,0.00012732,2]
[423188166,1779912642000,-3029.94,0.00012767,2]
[423188149,1779912642000,-500.0,0.00012711,2]
[423188222,1779912642000,-200.0,0.00013136,2]
[423188215,1779912642000,-1530.23,0.00012642,2]
[423188213,1779912642000,-902.73080016,0.00012642,2]
[423188218,1779912642000,-67.03919984,0.00012642,2]
[423188220,1779912642000,-291.7029998,0.00012711,2]
[423188147,1779912642000,-500.0,0.00012711,2]
[423188179,1779912642000,-150.99,0.00012786,2]
[423188191,1779912642000,-1810.0,0.00013486,2]
[423188190,1779912642000,-1811.61,0.000133,2]
[423188173,1779912642000,-1001.88,0.00012786,2]
[423188175,1779912642000,-9999.99,0.00012786,2]
[423188187,1779912642000,-150.0,0.00013186,2]
[423188185,1779912642000,-156.62,0.00012941,2]
[423188193,1779912642000,-84584.55371972,0.00013495,2]
[423188177,1779912642000,-999.99,0.00012786,2]
[423188172,1779912642000,-9999.99,0.00012786,2]
[423188157,1779912642000,-180.90107772,0.00012741,2]
[423188153,1779912642000,-2888.66,0.00012712,2]
[423188151,1779912642000,-213.93849686,0.00012712,2]
[423188161,1779912642000,-155115.0158,0.00012742,2]
[423188159,1779912642000,-197.30402301,0.00012741,2]
[423188168,1779912642000,-215.46156935,0.00012786,2]
[423188170,1779912642000,-299.99,0.00012786,2]